fUST/lending_fUST_20250707
["ID","MTS","AMOUNT","RATE_DAILY","PERIOD"]
[370132522,1751895051976,-1500.0,0.00021538,2]
[370132523,1751895051986,-207.4,0.00021538,2]
[370132524,1751895051995,-1500.0,0.00021538,2]
[370132525,1751895052005,-1500.0,0.00021538,2]
[370132526,1751895052015,-1500.0,0.00021538,2]
[370132527,1751895052024,-151.0,0.00021538,2]
[370132528,1751895052033,-151.0,0.00021538,2]
[370132529,1751895052043,-151.0,0.00021538,2]
[370132530,1751895052052,-151.0,0.00021538,2]
[370132531,1751895052065,-151.0,0.00021538,2]
[370132532,1751895052075,-151.0,0.00021538,2]
[370132533,1751895052084,-151.0,0.00021538,2]
[370132534,1751895052093,-151.0,0.00021538,2]
[370132535,1751895052103,-151.0,0.00021538,2]
[370132536,1751895052112,-200.66988016,0.00021555,5]
[370132537,1751895052122,-157.874257,0.00021579,2]
[370132538,1751895052132,-716.195754,0.00021593,2]
[370132539,1751895052142,-877.33,0.00021643,2]
[370132540,1751895052151,-151.0,0.00021643,2]
[370132541,1751895052160,-151.0,0.00021643,2]
[370132542,1751895052170,-151.0,0.00021643,2]
[370132543,1751895052179,-253.876506,0.00021643,2]
[370132544,1751895052188,-151.0,0.00021643,2]
[370132545,1751895052197,-153.042549,0.00021643,2]
[370132546,1751895052207,-223.042937,0.00021643,2]
[370132547,1751895052216,-223.042937,0.00021643,2]
[370132548,1751895052225,-151.0,0.00021643,2]
[370132549,1751895052235,-151.0,0.00021643,2]
[370132550,1751895052243,-460.0,0.00021643,2]
[370132551,1751895052253,-460.0,0.00021643,2]
[370132552,1751895052263,-577.049147,0.00021643,2]
[370132553,1751895052272,-460.0,0.00021643,2]
[370132554,1751895052281,-577.049147,0.00021643,2]
[370132555,1751895052291,-460.0,0.00021643,2]
[370132556,1751895052300,-266.315771,0.00021643,2]
[370132557,1751895052310,-266.315771,0.00021643,2]
[370132558,1751895052319,-460.0,0.00021643,2]
[370132559,1751895052329,-460.0,0.00021643,2]
[370132560,1751895052338,-460.0,0.00021643,2]
[370132561,1751895052347,-460.0,0.00021643,2]
[370132562,1751895052357,-496.76,0.00021643,2]
[370132563,1751895052366,-460.0,0.00021643,2]
[370132564,1751895052377,-1604.65,0.00021643,2]
[370132565,1751895052387,-606.71,0.00021643,2]
[370132566,1751895052396,-460.0,0.00021643,2]
[370132567,1751895052406,-524.74,0.00021643,2]
[370132568,1751895052416,-777.87,0.00021643,2]
[370132569,1751895052426,-980.88,0.00021643,2]
[370132570,1751895052436,-207.94613675,0.00021645,2]
[370132571,1751895052446,-180.59514429,0.00021645,2]
[370132572,1751895052455,-1500.0,0.00021646,2]
[370132573,1751895052465,-500.0,0.00021646,2]
[370132574,1751895052474,-1050.15772205,0.00021646,2]
[370132575,1751895052484,-1500.0,0.00021646,2]
[370132576,1751895052494,-1610.14731004,0.00021646,2]
[370132577,1751895052503,-1500.0,0.00021646,2]
[370132578,1751895052513,-1041.30254671,0.00021646,2]
[370132579,1751895052523,-1800.0,0.00021646,2]
[370132580,1751895052533,-1500.0,0.00021646,2]
[370132581,1751895052542,-1500.0,0.00021646,2]
[370132582,1751895052552,-742.6949969,0.00021648,2]
[370132583,1751895052561,-549.20648262,0.00021667,2]
[370132584,1751895052571,-157.874257,0.00021674,2]
[370132585,1751895052582,-770.17471178,0.00021703,2]
[370132586,1751895052592,-1000.0,0.00021739,2]
[370132587,1751895052601,-151.0,0.00021757,2]
[370132588,1751895052611,-151.0,0.00021757,2]
[370132589,1751895052621,-151.0,0.00021757,2]
[370132590,1751895052630,-596.114482,0.00021757,2]
[370132591,1751895052640,-596.114482,0.00021757,2]
[370132592,1751895052650,-798.67117612,0.00021758,2]
[370132593,1751895052660,-200.66988016,0.00021762,5]
[370132594,1751895052669,-157.874257,0.00021768,2]
[370132595,1751895052679,-828.22200964,0.00021813,2]
[370132596,1751895052689,-157.874257,0.00021862,2]
[370132597,1751895052698,-159.4922776,0.00021863,2]
[370132598,1751895052708,-576.0368563,0.00021863,2]
[370132599,1751895052717,-159.4922776,0.00021863,2]
[370132600,1751895052726,-576.0368563,0.00021863,2]
[370132601,1751895052736,-159.4922776,0.00021863,2]
[370132602,1751895052745,-576.0368563,0.00021863,2]
[370132603,1751895052754,-159.4922776,0.00021863,2]
[370132604,1751895052763,-576.0368563,0.00021863,2]
[370132605,1751895052772,-575.7033993,0.00021863,2]
[370132606,1751895052781,-159.4922776,0.00021863,2]
[370132607,1751895052791,-159.4922776,0.00021863,2]
[370132608,1751895052800,-159.4922776,0.00021863,2]
[370132609,1751895052809,-159.1691741,0.00021863,2]
[370132610,1751895052819,-858.86622399,0.00021868,2]
[370132611,1751895052828,-877.33,0.00021917,2]
[370132612,1751895052837,-460.0,0.00021917,2]
[370132613,1751895052847,-460.0,0.00021917,2]
[370132614,1751895052856,-159.98,0.00021917,2]
[370132615,1751895052867,-460.0,0.00021917,2]
[370132616,1751895052883,-546.49,0.00021917,2]
[370132617,1751895052894,-460.0,0.00021917,2]
[370132618,1751895052903,-460.0,0.00021917,2]
[370132619,1751895052912,-460.0,0.00021917,2]
[370132620,1751895052921,-496.76,0.00021917,2]
[370132621,1751895052931,-460.0,0.00021917,2]
[370132622,1751895052941,-1604.65,0.00021917,2]
[370132623,1751895052950,-606.71,0.00021917,2]
[370132624,1751895052960,-460.0,0.00021917,2]
[370132625,1751895052969,-524.74,0.00021917,2]
[370132626,1751895052979,-777.87,0.00021917,2]
[370132627,1751895052989,-980.88,0.00021917,2]
[370132628,1751895052998,-151.0,0.00021918,2]
[370132629,1751895053008,-151.0,0.00021918,2]
[370132630,1751895053017,-151.0,0.00021918,2]
[370132631,1751895053026,-151.0,0.00021918,2]
[370132632,1751895053035,-151.0,0.00021918,2]
[370132633,1751895053044,-151.0,0.00021918,2]
[370132634,1751895053056,-330.79775764,0.00021918,2]
[370132635,1751895053065,-500.0,0.00021918,2]
[370132636,1751895053074,-167.07840395,0.00021918,2]
[370132637,1751895053085,-500.0,0.00021918,2]
[370132638,1751895053095,-500.0,0.00021918,2]
[370132639,1751895053104,-500.0,0.00021918,2]
[370132640,1751895053114,-500.0,0.00021918,2]
[370132641,1751895053123,-500.0,0.00021918,2]
[370132642,1751895053136,-890.64427428,0.00021923,2]
[370132643,1751895053146,-791.08140482,0.00021951,2]
[370132644,1751895053156,-157.874257,0.00021957,2]
[370132645,1751895053165,-151.0,0.00021957,7]
[370132646,1751895053174,-151.0,0.00021957,7]
[370132647,1751895053183,-151.0,0.00021957,7]
[370132648,1751895053192,-251.706328,0.00021957,7]
[370132649,1751895053201,-251.706328,0.00021957,7]
[370132650,1751895053210,-153.0,0.00021957,2]
[370132651,1751895053220,-153.0,0.00021957,2]
[370132652,1751895053229,-576.0368563,0.00021957,2]
[370132653,1751895053239,-576.0368563,0.00021957,2]
[370132654,1751895053249,-576.0368563,0.00021957,2]
[370132655,1751895053258,-159.4922776,0.00021957,2]
[370132656,1751895053267,-200.66988016,0.00021969,6]
[370132657,1751895053277,-274.1828622,0.00021978,2]
[370132658,1751895053287,-13977.0,0.00022,5]
[370132659,1751895053296,-151.0,0.00022,7]
[370132660,1751895053306,-258.881302,0.00022,7]
[370132661,1751895053315,-151.0,0.00022,7]
[370132662,1751895053324,-151.0,0.00022,7]
[370132663,1751895053334,-151.0,0.00022,7]
[370132664,1751895053343,-169.0,0.00022,2]
[370132665,1751895053352,-1769.0,0.00022042,2]
[370132666,1751895053365,-151.0,0.00022042,7]
[370132667,1751895053374,-222.542961,0.00022042,7]
[370132668,1751895053384,-161.820325,0.00022042,7]
[370132669,1751895053393,-161.820325,0.00022042,7]
[370132670,1751895053402,-151.0,0.00022042,7]
[370132671,1751895053412,-151.0,0.00022042,7]
[370132672,1751895053422,-151.0,0.00022042,7]
[370132673,1751895053431,-151.0,0.00022042,7]
[370132674,1751895053441,-151.0,0.00022042,7]
[370132675,1751895053450,-762.0,0.00022042,2]
[370132676,1751895053459,-762.0,0.00022047,2]
[370132677,1751895053469,-157.874257,0.00022051,2]
[370132678,1751895053478,-18218.69075061,0.00022076,2]
[370132679,1751895053488,-762.0,0.00022108,2]
[370132680,1751895053497,-762.0,0.00022112,2]
[370132681,1751895053507,-157.874257,0.00022146,2]
[370132682,1751895053516,-200.66988016,0.00022176,6]
[370132683,1751895053526,-877.33,0.00022191,2]
[370132684,1751895053535,-151.0,0.00022191,7]
[370132685,1751895053545,-151.0,0.00022191,7]
[370132686,1751895053554,-151.0,0.00022191,7]
[370132687,1751895053564,-151.0,0.00022191,7]
[370132688,1751895053573,-188.43257,0.00022191,7]
[370132689,1751895053584,-151.0,0.00022191,7]
[370132690,1751895053593,-151.0,0.00022191,7]
[370132691,1751895053603,-180.66758,0.00022191,7]
[370132692,1751895053613,-180.66758,0.00022191,7]
[370132693,1751895053624,-460.0,0.00022191,2]
[370132694,1751895053634,-460.0,0.00022191,2]
[370132695,1751895053644,-151.0,0.00022191,7]
[370132696,1751895053653,-460.0,0.00022191,2]
[370132697,1751895053663,-151.0,0.00022191,7]
[370132698,1751895053673,-460.0,0.00022191,2]
[370132699,1751895053683,-460.0,0.00022191,2]
[370132700,1751895053693,-460.0,0.00022191,2]
[370132701,1751895053702,-496.76,0.00022191,2]
[370132702,1751895053712,-460.0,0.00022191,2]
[370132703,1751895053724,-1604.65,0.00022191,2]
[370132704,1751895053734,-606.71,0.00022191,2]
[370132705,1751895053744,-460.0,0.00022191,2]
[370132706,1751895053754,-524.74,0.00022191,2]
[370132707,1751895053763,-777.87,0.00022191,2]
[370132708,1751895053772,-980.88,0.00022191,2]
[370132709,1751895053782,-500.0,0.00022194,2]
[370132710,1751895053791,-2000.0,0.00022194,2]
[370132711,1751895053800,-1163.66441079,0.00022194,2]
[370132712,1751895053810,-600.0,0.00022194,2]
[370132713,1751895053819,-2000.0,0.00022194,2]
[370132714,1751895053829,-417.77687542,0.00022194,2]
[370132715,1751895053838,-1288.95,0.000222,7]
[370132716,1751895053848,-151.0,0.000222,6]
[370132717,1751895053858,-10976.58163788,0.000222,2]
[370132718,1751895053867,-157.874257,0.0002224,2]
[370132719,1751895053877,-1752.454085,0.00022315,4]
[370132720,1751895053887,-157.874257,0.00022335,2]
[370132721,1751895053896,-407.31476207,0.00022354,2]
[370132722,1751895053906,-1629.25904827,0.00022354,2]
[370132723,1751895053915,-3662.16702576,0.00022354,2]
[370132724,1751895053924,-252.126305,0.00022356,7]
[370132725,1751895053934,-252.126305,0.00022356,7]
[370132726,1751895053944,-200.66988016,0.00022383,7]
[370132727,1751895053953,-1822.74,0.0002241,5]
[370132728,1751895053963,-151.0,0.00022411,7]
[370132729,1751895053972,-151.0,0.00022411,7]
[370132730,1751895053982,-151.0,0.00022411,7]
[370132731,1751895053991,-157.874257,0.00022429,2]
[370132732,1751895054001,-762.0,0.00022455,2]
[370132733,1751895054010,-151.0,0.00022455,7]
[370132734,1751895054019,-151.0,0.00022455,7]
[370132735,1751895054029,-151.0,0.00022455,7]
[370132736,1751895054039,-151.0,0.00022455,7]
[370132737,1751895054048,-223.042937,0.00022455,7]
[370132738,1751895054061,-223.042937,0.00022455,7]
[370132739,1751895054070,-151.0,0.00022455,3]
[370132740,1751895054079,-151.0,0.00022455,3]
[370132741,1751895054089,-577.049147,0.00022455,2]
[370132742,1751895054099,-577.049147,0.00022455,2]
[370132743,1751895054109,-266.315771,0.00022455,7]
[370132744,1751895054119,-266.315771,0.00022455,7]
[370132745,1751895054129,-877.33,0.00022465,2]
[370132746,1751895054139,-151.0,0.00022465,7]
[370132747,1751895054149,-151.0,0.00022465,7]
[370132748,1751895054158,-151.0,0.00022465,7]
[370132749,1751895054272,-460.0,0.00022465,2]
[370132750,1751895054282,-460.0,0.00022465,2]
[370132751,1751895054292,-460.0,0.00022465,2]
[370132752,1751895054302,-460.0,0.00022465,2]
[370132753,1751895054311,-460.0,0.00022465,2]
[370132754,1751895054320,-460.0,0.00022465,2]
[370132755,1751895054330,-496.76,0.00022465,2]
[370132756,1751895054339,-460.0,0.00022465,2]
[370132757,1751895054349,-1604.65,0.00022465,2]
[370132758,1751895054358,-606.71,0.00022465,2]
[370132759,1751895054368,-460.0,0.00022465,2]
[370132760,1751895054379,-524.74,0.00022465,2]
[370132761,1751895054388,-777.87,0.00022465,2]
[370132762,1751895054398,-980.88,0.00022465,2]
[370132763,1751895054408,-1822.74,0.0002251,7]
[370132764,1751895054417,-200.66988016,0.0002259,7]
[370132765,1751895054427,-151.0,0.000226,7]
[370132766,1751895054437,-214.06929976,0.000226,7]
[370132767,1751895054446,-191.5805135,0.000226,7]
[370132768,1751895054462,-567.95000424,0.000226,7]
[370132769,1751895054574,-460.0,0.00019178,2]
[370132770,1751895054584,-460.0,0.0002,2]
[370132771,1751895054595,-575.49,0.00020821,2]
[370132772,1751895054604,-460.0,0.00020821,2]
[370132773,1751895054613,-575.49,0.00021095,2]
[370132774,1751895054624,-460.0,0.00021095,2]
[370132775,1751895054633,-575.49,0.00021369,2]
[370132776,1751895054643,-460.0,0.00021369,2]
[370132777,1751895054653,-151.0,0.00021538,2]
[370132778,1751895054662,-151.0,0.00021538,2]
[370132779,1751895054671,-575.49,0.00021643,2]
[370132780,1751895054680,-460.0,0.00021643,2]
[370132781,1751895054690,-575.49,0.00021917,2]
[370132782,1751895054700,-460.0,0.00021917,2]
[370132783,1751895054709,-575.49,0.00022191,2]
[370132784,1751895054719,-460.0,0.00022191,2]
[370132785,1751895054729,-88.74941629,0.000226,7]
[370132786,1751895054738,-12584.46609586,0.000226,7]
[370132787,1751895054747,-230.36197,0.00022603,2]
[370132788,1751895054756,-1822.74,0.0002261,5]
[370132789,1751895054766,-1000.0,0.00022636,5]
[370132790,1751895054775,-151.0,0.00022668,7]
[370132791,1751895054784,-151.0,0.00022668,7]
[370132792,1751895054793,-151.0,0.00022668,7]
[370132793,1751895054803,-596.114482,0.00022668,7]
[370132794,1751895054813,-596.114482,0.00022668,7]
[370132795,1751895054822,-429.77615428,0.000227,2]
[370132796,1751895054831,-200.0,0.000227,3]
[370132797,1751895054841,-692.0,0.00022703,2]
[370132798,1751895054850,-1822.74,0.0002271,2]
[370132799,1751895054859,-877.33,0.00022739,2]
[370132800,1751895054869,-460.0,0.00022739,2]
[370132801,1751895054878,-460.0,0.00022739,2]
[370132802,1751895054888,-460.0,0.00022739,2]
[370132803,1751895054897,-460.0,0.00022739,2]
[370132804,1751895054907,-460.0,0.00022739,2]
[370132805,1751895054916,-460.0,0.00022739,2]
[370132806,1751895054925,-496.76,0.00022739,2]
[370132807,1751895054935,-327.06720269,0.00022739,2]
[370132808,1751895055069,-460.0604609,0.00019178,2]
[370132809,1751895055078,-159.4922776,0.00021041,2]
[370132810,1751895055088,-129.02710997,0.00021041,2]
[370132811,1751895055235,-460.0,0.00019178,2]
[370132812,1751895055245,-151.0,0.00020547,2]
[370132813,1751895055254,-447.00974633,0.00021041,2]
[370132814,1751895055264,-355.527084,0.00021135,2]
[370132815,1751895055274,-151.0,0.00021538,2]
[370132816,1751895055283,-151.0,0.00021538,2]
[370132817,1751895055293,-151.0,0.00021538,2]
[370132818,1751895055303,-151.0,0.00021538,2]
[370132819,1751895055313,-151.0,0.00021538,2]
[370132820,1751895055323,-151.0,0.00021538,2]
[370132821,1751895055333,-151.0,0.00021538,2]
[370132822,1751895055342,-151.0,0.00021538,2]
[370132823,1751895055352,-460.0,0.00022465,2]
[370132824,1751895055362,-575.49,0.00022465,2]
[370132825,1751895055372,-132.93279731,0.00022739,2]
[370132826,1751895055382,-1604.65,0.00022739,2]
[370132827,1751895055391,-606.71,0.00022739,2]
[370132828,1751895055402,-460.0,0.00022739,2]
[370132829,1751895055411,-524.74,0.00022739,2]
[370132830,1751895055423,-777.87,0.00022739,2]
[370132831,1751895055433,-980.88,0.00022739,2]
[370132832,1751895055442,-460.0,0.00022739,2]
[370132833,1751895055452,-575.49,0.00022739,2]
[370132834,1751895055461,-2500.0,0.00022742,2]
[370132835,1751895055471,-2500.0,0.00022742,2]
[370132836,1751895055482,-325.10980609,0.00022771,2]
[370132837,1751895055492,-151.0,0.00022779,7]
[370132838,1751895055501,-151.0,0.00022779,7]
[370132839,1751895055511,-151.0,0.00022779,7]
[370132840,1751895055521,-151.0,0.00022779,7]
[370132841,1751895055531,-151.0,0.00022779,7]
[370132842,1751895055541,-151.0,0.00022779,7]
[370132843,1751895055551,-151.0,0.00022779,7]
[370132844,1751895055560,-151.0,0.00022779,7]
[370132845,1751895055570,-215.542842,0.00022779,7]
[370132846,1751895055579,-215.542842,0.00022779,7]
[370132847,1751895055589,-200.66988016,0.00022797,7]
[370132848,1751895055599,-332.0,0.00022797,2]
[370132849,1751895055608,-160.0,0.000228,7]
[370132850,1751895055618,-932.0,0.00022807,2]
[370132851,1751895055630,-1822.74,0.0002281,6]
[370132852,1751895055639,-646.0,0.00022886,2]
[370132853,1751895055648,-332.0,0.00022889,2]
[370132854,1751895055659,-14199.42152386,0.000229,7]
[370132855,1751895055671,-436.11914171,0.000229,7]
[370132856,1751895055687,-6279.77455,0.000229,7]
[370132857,1751895055700,-541.5,0.000229,7]
[370132870,1751895307540,164.904123,0.00013699,2]
[370132882,1751895613662,5042.82026218,0.00016105,2]
[370132883,1751895934138,-2427.05854964,0.0001814,2]
[370132885,1751896201792,562.0,0.00027397,120]
[370133028,1751896237851,-1255.25124958,0.0001814,2]
[370133035,1751896237911,-3532.38032451,0.0001814,2]
[370133037,1751896237923,-212.36842591,0.0001814,2]
[370133039,1751896237934,-220.2289857,0.00018323,2]
[370133041,1751896237945,-176.32477066,0.000189,2]
[370133044,1751896237957,-25.38067191,0.000189,2]
[370133046,1751896237967,-300.0,0.00019167,2]
[370133048,1751896237976,-228.65810788,0.00019168,3]
[370133050,1751896237989,-1075.37189212,0.00019168,3]
[370133052,1751896237998,-733.18,0.00019168,3]
[370133054,1751896238008,-343.45075848,0.00019168,3]
[370133056,1751896238021,-23.13924152,0.00019168,3]
[370133058,1751896238030,-183.29,0.00019168,3]
[370133061,1751896238040,-2434.15549006,0.00019176,2]
[370133063,1751896238050,-638.76659815,0.00019177,2]
[370133065,1751896238059,-223.09387801,0.00019177,2]
[370133066,1751896238068,-500.0,0.00019177,2]
[370133069,1751896238077,-500.0,0.00019177,2]
[370133070,1751896238086,-500.0,0.00019177,2]
[370133073,1751896238095,-574.65,0.00019177,2]
[370133075,1751896238105,-500.0,0.00019177,2]
[370133077,1751896238114,-500.0,0.00019177,2]
[370133079,1751896238124,-500.0,0.00019177,2]
[370133080,1751896238134,-500.0,0.00019177,2]
[370133083,1751896238144,-25.47308838,0.00019177,2]
[370133085,1751896238156,-474.52691162,0.00019177,2]
[370133087,1751896238165,-299.14318598,0.00019177,2]
[370133089,1751896238176,-200.85681402,0.00019177,2]
[370133091,1751896238186,-461.14919274,0.00019178,2]
[370133093,1751896238195,-15.09452878,0.00019178,2]
[370133095,1751896238207,-444.90547122,0.00019178,2]
[370133097,1751896238217,-554.64,0.00019178,2]
[370133099,1751896238226,-460.0,0.00019178,2]
[370133101,1751896238236,-460.0,0.00019178,2]
[370133103,1751896238245,-460.0,0.00019178,2]
[370133106,1751896238259,-494.42600144,0.00019178,2]
[370133108,1751896238270,-460.0,0.00019178,2]
[370133109,1751896238280,-460.0,0.00019178,2]
[370133111,1751896238290,-291.63912992,0.00019178,2]
[370133113,1751896238300,-245.19732975,0.00019178,2]
[370133115,1751896238312,-214.80267025,0.00019178,2]
[370133117,1751896238322,-427.64415567,0.00019178,2]
[370133119,1751896238334,-32.35584433,0.00019178,2]
[370133120,1751896238344,-460.0,0.00019178,2]
[370133122,1751896238354,-460.0,0.00019178,2]
[370133124,1751896238364,-460.0,0.00019178,2]
[370133126,1751896238375,-460.0,0.00019178,2]
[370133128,1751896238386,-460.0,0.00019178,2]
[370133130,1751896238400,-460.0,0.00019178,2]
[370133131,1751896238410,-460.0,0.00019178,2]
[370133133,1751896238421,-460.0,0.00019178,2]
[370133135,1751896238430,-460.0,0.00019178,2]
[370133137,1751896238441,-460.0,0.00019178,2]
[370133139,1751896238451,-422.72917488,0.00019178,2]
[370133141,1751896238461,-460.0,0.00019178,2]
[370133143,1751896238472,-460.0,0.00019178,2]
[370133145,1751896238483,-460.0,0.00019178,2]
[370133147,1751896238493,-460.0,0.00019178,2]
[370133148,1751896238503,-460.0,0.00019178,2]
[370133150,1751896238512,-460.0,0.00019178,2]
[370133151,1751896238522,-460.0,0.00019178,2]
[370133153,1751896238532,-460.0,0.00019178,2]
[370133155,1751896238542,-460.0,0.00019178,2]
[370133157,1751896238551,-460.0,0.00019178,2]
[370133158,1751896238561,-460.0,0.00019178,2]
[370133160,1751896238571,-423.79949101,0.00019178,2]
[370133162,1751896238581,-343.91068106,0.00019178,2]
[370133164,1751896238590,-460.0,0.00019178,2]
[370133166,1751896238600,-460.0,0.00019178,2]
[370133168,1751896238610,-460.0,0.00019178,2]
[370133170,1751896238619,-460.0,0.00019178,2]
[370133172,1751896238629,-460.0,0.00019178,2]
[370133174,1751896238638,-460.0,0.00019178,2]
[370133175,1751896238648,-460.0,0.00019178,2]
[370133176,1751896238658,-462.50939795,0.00019178,2]
[370133177,1751896238667,-461.45462793,0.00019178,2]
[370133178,1751896238677,-460.0,0.00019178,2]
[370133179,1751896238687,-460.0,0.00019178,2]
[370133180,1751896238697,-460.0,0.00019178,2]
[370133181,1751896238706,-461.55552391,0.00019178,2]
[370133182,1751896238716,-460.0,0.00019178,2]
[370133183,1751896238726,-460.0,0.00019178,2]
[370133184,1751896238735,-460.0,0.00019178,2]
[370133185,1751896238746,-460.0,0.00019178,2]
[370133186,1751896238756,-460.0,0.00019178,2]
[370133187,1751896238765,-460.0,0.00019178,2]
[370133188,1751896238775,-460.0,0.00019178,2]
[370133189,1751896238786,-460.0,0.00019178,2]
[370133190,1751896238797,-486.13553908,0.00019178,2]
[370133191,1751896238808,-460.0,0.00019178,2]
[370133192,1751896238818,-460.0,0.00019178,2]
[370133193,1751896238828,-460.0,0.00019178,2]
[370133194,1751896238838,-460.0,0.00019178,2]
[370133195,1751896238847,-460.0,0.00019178,2]
[370133196,1751896238857,-460.0,0.00019178,2]
[370133197,1751896238867,-460.0,0.00019178,2]
[370133198,1751896238877,-460.0,0.00019178,2]
[370133199,1751896238887,-460.0,0.00019178,2]
[370133200,1751896238899,-460.0,0.00019178,2]
[370133201,1751896238908,-460.0,0.00019178,2]
[370133202,1751896238918,-460.0,0.00019178,2]
[370133203,1751896238928,-460.0,0.00019178,2]
[370133204,1751896238938,-460.0,0.00019178,2]
[370133205,1751896238948,-460.0,0.00019178,2]
[370133206,1751896238958,-460.0,0.00019178,2]
[370133207,1751896238968,-460.0,0.00019178,2]
[370133208,1751896238978,-460.0,0.00019178,2]
[370133209,1751896238987,-460.0,0.00019178,2]
[370133210,1751896238997,-460.0,0.00019178,2]
[370133211,1751896239007,-460.0,0.00019178,2]
[370133212,1751896239017,-460.0,0.00019178,2]
[370133213,1751896239026,-460.0,0.00019178,2]
[370133214,1751896239036,-460.0,0.00019178,2]
[370133215,1751896239045,-460.0,0.00019178,2]
[370133216,1751896239055,-259.74818446,0.00019178,2]
[370133217,1751896239065,-460.0,0.00019178,2]
[370133218,1751896239074,-460.0,0.00019178,2]
[370133219,1751896239084,-460.0,0.00019178,2]
[370133220,1751896239094,-460.0,0.00019178,2]
[370133221,1751896239104,-460.0,0.00019178,2]
[370133222,1751896239113,-460.0,0.00019178,2]
[370133223,1751896239123,-461.24120131,0.00019178,2]
[370133224,1751896239133,-460.0,0.00019178,2]
[370133225,1751896239142,-460.0,0.00019178,2]
[370133226,1751896239152,-460.0,0.00019178,2]
[370133227,1751896239161,-460.0,0.00019178,2]
[370133228,1751896239171,-460.0,0.00019178,2]
[370133229,1751896239180,-460.0,0.00019178,2]
[370133230,1751896239191,-460.0,0.00019178,2]
[370133231,1751896239201,-460.0,0.00019178,2]
[370133232,1751896239212,-460.0,0.00019178,2]
[370133233,1751896239221,-460.0,0.00019178,2]
[370133234,1751896239232,-460.0,0.00019178,2]
[370133235,1751896239243,-460.0,0.00019178,2]
[370133236,1751896239253,-162.05605859,0.00019178,2]
[370133237,1751896239263,-460.0,0.00019178,2]
[370133238,1751896239273,-460.0,0.00019178,2]
[370133239,1751896239282,-460.0,0.00019178,2]
[370133240,1751896239292,-244.45467458,0.00019178,2]
[370133241,1751896239301,-460.0,0.00019178,2]
[370133242,1751896239311,-460.0,0.00019178,2]
[370133243,1751896239320,-460.0,0.00019178,2]
[370133244,1751896239330,-460.0,0.00019178,2]
[370133245,1751896239340,-460.0,0.00019178,2]
[370133246,1751896239349,-460.0,0.00019178,2]
[370133247,1751896239359,-460.0,0.00019178,2]
[370133248,1751896239368,-460.0,0.00019178,2]
[370133249,1751896239378,-460.0,0.00019178,2]
[370133250,1751896239388,-460.0,0.00019178,2]
[370133251,1751896239400,-460.0,0.00019178,2]
[370133252,1751896239410,-460.0,0.00019178,2]
[370133253,1751896239420,-460.0,0.00019178,2]
[370133254,1751896239430,-460.0,0.00019178,2]
[370133256,1751896239440,-460.0,0.00019178,2]
[370133257,1751896239451,-460.0,0.00019178,2]
[370133259,1751896239460,-206.89671295,0.00019178,2]
[370133262,1751896239482,-253.10328705,0.00019178,2]
[370133264,1751896239492,-460.0,0.00019178,2]
[370133266,1751896239501,-434.40331295,0.00019178,2]
[370133275,1751896239688,-25.59668705,0.00019178,2]